fUSD/lending_fUSD_20251001
["ID","MTS","AMOUNT","RATE_DAILY","PERIOD"]
[388684660,1759318250821,-1088.08,0.00021917,2]
[388684662,1759318250831,-4666.64,0.00021917,2]
[388684664,1759318250841,-500.0,0.00021917,2]
[388684666,1759318250850,-3878.74,0.00021917,2]
[388684668,1759318250859,-3002.64,0.00021917,2]
[388684670,1759318250868,-500.0,0.00021917,2]
[388684672,1759318250877,-500.0,0.00021917,2]
[388684674,1759318250886,-151.0,0.00021917,2]
[388684676,1759318250895,-500.0,0.00021917,2]
[388684678,1759318250904,-500.0,0.00021917,2]
[388684680,1759318250913,-2595.6,0.00021917,2]
[388684682,1759318250922,-917.22,0.00021917,2]
[388684684,1759318250930,-500.0,0.00021917,2]
[388684686,1759318250939,-500.0,0.00021917,2]
[388684688,1759318250948,-500.0,0.00021917,2]
[388684690,1759318250958,-500.0,0.00021917,2]
[388684692,1759318250967,-500.0,0.00021917,2]
[388684694,1759318250976,-3287.18,0.00021917,2]
[388684697,1759318250986,-3093.24,0.00021917,2]
[388684699,1759318250995,-500.0,0.00021917,2]
[388684700,1759318251007,-1307.4,0.00021917,2]
[388684703,1759318251017,-500.0,0.00021917,2]
[388684704,1759318251027,-1353.79,0.00021917,2]
[388684706,1759318251037,-2342.55,0.00021917,2]
[388684709,1759318251046,-6731.9,0.00021917,2]
[388684711,1759318251055,-683.93,0.00021917,2]
[388684713,1759318251064,-5080.8,0.00021917,2]
[388684715,1759318251074,-19796.17,0.00021917,2]
[388684717,1759318251083,-500.0,0.00021917,2]
[388684719,1759318251092,-3278.44,0.00021917,2]
[388684721,1759318251101,-2941.33,0.00021917,2]
[388684723,1759318251110,-500.0,0.00021917,2]
[388684725,1759318251119,-981.54,0.00021917,2]
[388684727,1759318251128,-500.0,0.00021917,2]
[388684728,1759318251137,-500.0,0.00021917,2]
[388684731,1759318251146,-1842.07,0.00021917,2]
[388684733,1759318251155,-3114.55,0.00021917,2]
[388684735,1759318251165,-556.9105279,0.00021917,2]
[388684737,1759318251174,-5302.08,0.00021917,2]
[388684739,1759318251184,-3470.88,0.00021917,2]
[388684741,1759318251193,-500.0,0.00021917,2]
[388684742,1759318251202,-500.0,0.00021917,2]
[388684744,1759318251211,-500.0,0.00021917,2]
[388684746,1759318251219,-2724.11,0.00021917,2]
[388684748,1759318251228,-500.0,0.00021917,2]
[388684750,1759318251237,-1952.47,0.00021917,2]
[388684752,1759318251246,-500.0,0.00021917,2]
[388684754,1759318251255,-500.0,0.00021917,2]
[388684756,1759318251264,-500.0,0.00021917,2]
[388684757,1759318251273,-2491.77,0.00021917,2]
[388684758,1759318251282,-2927.52,0.00021917,2]
[388684759,1759318251292,-2749.05,0.00021917,2]
[388684760,1759318251301,-500.0,0.00021917,2]
[388684761,1759318251310,-1267.59,0.00021917,2]
[388684762,1759318251319,-2323.33,0.00021917,2]
[388684763,1759318251328,-500.0,0.00021917,2]
[388684764,1759318251339,-500.0,0.00021917,2]
[388684765,1759318251351,-2170.52,0.00021917,2]
[388684766,1759318251368,-3028.74,0.00021917,2]
[388684767,1759318251377,-500.0,0.00021917,2]
[388684768,1759318251388,-2598.58,0.00021917,2]
[388684770,1759318251397,-500.0,0.00021917,2]
[388684772,1759318251406,-611.55,0.00021917,2]
[388684774,1759318251416,-1970.42,0.00021917,2]
[388684776,1759318251425,-3702.49,0.00021917,2]
[388684778,1759318251434,-500.0,0.00021917,2]
[388684780,1759318251443,-4169.0,0.00021917,2]
[388684782,1759318251452,-589.28,0.00021917,2]
[388684784,1759318251461,-2067.73,0.00021917,2]
[388684786,1759318251470,-602.08,0.00021917,2]
[388684788,1759318251479,-500.0,0.00021917,2]
[388684790,1759318251490,-500.0,0.00021917,2]
[388684792,1759318251499,-500.0,0.00021917,2]
[388684794,1759318251509,-500.0,0.00021917,2]
[388684796,1759318251517,-1972.82,0.00021917,2]
[388684798,1759318251527,-2041.8,0.00021917,2]
[388684800,1759318251536,-500.0,0.00021917,2]
[388684802,1759318251545,-500.0,0.00021917,2]
[388684804,1759318251554,-3889.06,0.00021917,2]
[388684806,1759318251563,-637.96,0.00021917,2]
[388684807,1759318251573,-14337.18,0.00021917,2]
[388684808,1759318251582,-2072.71,0.00021917,2]
[388684809,1759318251591,-205.50732125,0.00021917,2]
[388684810,1759318251600,-3256.79,0.00021917,2]
[388684811,1759318251610,-500.0,0.00021917,2]
[388684812,1759318251619,-500.0,0.00021917,2]
[388684813,1759318251629,-9724.21,0.00021917,2]
[388684814,1759318251638,-500.0,0.00021917,2]
[388684815,1759318251647,-2760.87,0.00021917,2]
[388684816,1759318251656,-1559.77,0.00021917,2]
[388684817,1759318251666,-765.51,0.00021917,2]
[388684818,1759318251675,-1207.01,0.00021917,2]
[388684819,1759318251685,-500.0,0.00021917,2]
[388684820,1759318251695,-9471.46,0.00021917,2]
[388684821,1759318251704,-2440.13,0.00021917,2]
[388684822,1759318251713,-500.0,0.00021917,2]
[388684823,1759318251722,-4503.66,0.00021917,2]
[388684824,1759318251731,-1036.33,0.00021917,2]
[388684825,1759318251740,-2953.71,0.00021917,2]
[388684826,1759318251748,-3119.28,0.00021917,2]
[388684827,1759318251759,-500.0,0.00021917,2]
[388684828,1759318251770,-500.0,0.00021917,2]
[388684829,1759318251778,-3484.56,0.00021917,2]
[388684830,1759318251787,-3253.36,0.00021917,2]
[388684831,1759318251796,-1041.2,0.00021917,2]
[388684832,1759318251807,-500.0,0.00021917,2]
[388684833,1759318251816,-1192.28,0.00021917,2]
[388684834,1759318251825,-500.0,0.00021917,2]
[388684835,1759318251834,-763.94,0.00021917,2]
[388684836,1759318251844,-1601.06,0.00021917,2]
[388684837,1759318251853,-500.0,0.00021917,2]
[388684838,1759318251861,-922.052687,0.00021917,2]
[388684839,1759318251870,-1102.43,0.00021917,2]
[388684840,1759318251881,-3319.12,0.00021917,2]
[388684841,1759318251890,-2272.53,0.00021917,2]
[388684842,1759318251899,-5120.47,0.00021917,2]
[388684843,1759318251909,-2364.85,0.00021917,2]
[388684844,1759318251918,-1895.07,0.00021917,2]
[388684845,1759318251928,-561.06,0.00021917,2]
[388684846,1759318251937,-3990.52,0.00021917,2]
[388684847,1759318251946,-151.0,0.00021917,2]
[388684848,1759318251955,-151.0,0.00021917,2]
[388684849,1759318251964,-2364.12,0.00021917,2]
[388684850,1759318251973,-500.0,0.00021917,2]
[388684851,1759318251983,-151.0,0.00021917,2]
[388684852,1759318251992,-151.0,0.00021917,2]
[388684853,1759318252003,-151.0,0.00021917,2]
[388684854,1759318252012,-151.0,0.00021917,2]
[388684855,1759318252022,-151.0,0.00021917,2]
[388684856,1759318252031,-151.0,0.00021917,2]
[388684857,1759318252040,-151.0,0.00021917,2]
[388684858,1759318252049,-989.21,0.00021917,2]
[388684859,1759318252058,-151.0,0.00021917,2]
[388684860,1759318252067,-151.0,0.00021917,2]
[388684861,1759318252077,-151.0,0.00021917,2]
[388684862,1759318252085,-4177.95,0.00021917,2]
[388684863,1759318252095,-156.418437,0.00021917,2]
[388684864,1759318252104,-151.0,0.00021917,2]
[388684865,1759318252113,-151.0,0.00021917,2]
[388684866,1759318252123,-5467.35,0.00021917,2]
[388684867,1759318252132,-271.989849,0.00021917,2]
[388684868,1759318252141,-4405.65,0.00021917,2]
[388684869,1759318252150,-1073.96,0.00021917,2]
[388684870,1759318252160,-287.74492,0.00021917,2]
[388684871,1759318252170,-1594.52,0.00021917,2]
[388684872,1759318252179,-1163.41,0.00021917,2]
[388684873,1759318252189,-6690.69,0.00021917,2]
[388684874,1759318252199,-215.056684,0.00021917,2]
[388684875,1759318252208,-1936.47,0.00021917,2]
[388684876,1759318252218,-4338.36,0.00021917,2]
[388684877,1759318252227,-500.0,0.00021917,2]
[388684878,1759318252236,-3058.13,0.00021917,2]
[388684879,1759318252245,-323.8663869,0.00021917,2]
[388684880,1759318252255,-3563.65,0.00021917,2]
[388684881,1759318252264,-1079.44,0.00021917,2]
[388684882,1759318252274,-1673.57,0.00021917,2]
[388684883,1759318252283,-2511.42,0.00021917,2]
[388684884,1759318252292,-151.0,0.00021917,2]
[388684885,1759318252301,-2478.39,0.00021917,2]
[388684886,1759318252310,-3357.91,0.00021917,2]
[388684887,1759318252320,-15311.58,0.00021917,2]
[388684888,1759318252330,-1437.45,0.00021917,2]
[388684889,1759318252339,-2863.59,0.00021917,2]
[388684890,1759318252348,-665.19,0.00021917,2]
[388684891,1759318252357,-6135.1,0.00021917,2]
[388684892,1759318252366,-3903.46,0.00021917,2]
[388684893,1759318252375,-15847.75,0.00021917,2]
[388684894,1759318252384,-3006.69,0.00021917,2]
[388684895,1759318252393,-500.0,0.00021917,2]
[388684896,1759318252401,-507.2,0.00021917,2]
[388684897,1759318252410,-500.0,0.00021917,2]
[388684898,1759318252419,-1204.78,0.00021917,2]
[388684899,1759318252428,-2704.17,0.00021917,2]
[388684900,1759318252437,-500.0,0.00021917,2]
[388684901,1759318252446,-500.0,0.00021917,2]
[388684902,1759318252455,-151.0,0.00021917,2]
[388684903,1759318252464,-562.44,0.00021917,2]
[388684904,1759318252473,-151.0,0.00021917,2]
[388684905,1759318252483,-151.0,0.00021917,2]
[388684906,1759318252492,-151.0,0.00021917,2]
[388684907,1759318252502,-151.0,0.00021917,2]
[388684908,1759318252511,-151.0,0.00021917,2]
[388684909,1759318252520,-2839.39,0.00021917,2]
[388684910,1759318252529,-249.656737,0.00021917,2]
[388684911,1759318252538,-859.101623,0.00021917,2]
[388684912,1759318252548,-3604.11,0.00021917,2]
[388684913,1759318252557,-2573.92,0.00021917,2]
[388684914,1759318252566,-539.35,0.00021917,2]
[388684915,1759318252575,-592.98,0.00021917,2]
[388684916,1759318252584,-514.06,0.00021917,2]
[388684917,1759318252593,-151.0,0.00021917,2]
[388684918,1759318252603,-151.0,0.00021917,2]
[388684919,1759318252612,-3672.13,0.00021917,2]
[388684920,1759318252621,-610.79,0.00021917,2]
[388684921,1759318252630,-2285.91,0.00021917,2]
[388684922,1759318252640,-398.325065,0.00021917,2]
[388684923,1759318252649,-696.04,0.00021917,2]
[388684924,1759318252659,-500.0,0.00021917,2]
[388684925,1759318252668,-975.98,0.00021917,2]
[388684926,1759318252678,-500.0,0.00021917,2]
[388684927,1759318252687,-9618.19,0.00021917,2]
[388684928,1759318252696,-190.74307223,0.00021917,2]
[388684929,1759318252705,-29875.81,0.00021917,2]
[388684930,1759318252714,-2231.23,0.00021917,2]
[388684931,1759318252723,-500.0,0.00021917,2]
[388684932,1759318252732,-2378.61,0.00021917,2]
[388684933,1759318252741,-500.0,0.00021917,2]
[388684934,1759318252751,-500.0,0.00021917,2]
[388684935,1759318252765,-500.0,0.00021917,2]
[388684936,1759318252774,-2143.61,0.00021917,2]
[388684937,1759318252783,-1043.84,0.00021917,2]
[388684938,1759318252792,-1629.89,0.00021917,2]
[388684939,1759318252802,-5960.71,0.00021917,2]
[388684940,1759318252811,-500.0,0.00021917,2]
[388684941,1759318252820,-14569.3,0.00021917,2]
[388684942,1759318252829,-927.74,0.00021917,2]
[388684943,1759318252839,-1303.67,0.00021917,2]
[388684944,1759318252850,-1000.0,0.00021917,2]
[388684945,1759318252859,-381.39596184,0.00021917,2]
[388684946,1759318252868,-865.22,0.00021917,2]
[388684947,1759318252878,-5788.41,0.00021917,2]
[388684948,1759318252888,-4432.83,0.00021917,2]
[388684949,1759318252897,-500.0,0.00021917,2]
[388684950,1759318252907,-500.0,0.00021917,2]
[388684951,1759318252916,-5426.3,0.00021917,2]
[388684952,1759318252925,-4020.77,0.00021917,2]
[388684953,1759318252934,-2982.5,0.00021917,2]
[388684954,1759318252943,-8042.91,0.00021917,2]
[388684955,1759318253077,-827.99,0.00021917,2]
[388684956,1759318253088,-500.0,0.00021917,2]
[388684957,1759318253098,-3397.97,0.00021917,2]
[388684958,1759318253108,-568.48,0.00021917,2]
[388684959,1759318253117,-2143.65,0.00021917,2]
[388684960,1759318253127,-500.0,0.00021917,2]
[388684961,1759318253137,-151.0,0.00021917,2]
[388684962,1759318253148,-151.0,0.00021917,2]
[388684963,1759318253158,-151.0,0.00021917,2]
[388684964,1759318253169,-151.0,0.00021917,2]
[388684965,1759318253180,-500.0,0.00021917,2]
[388684966,1759318253189,-151.0,0.00021917,2]
[388684967,1759318253200,-500.0,0.00021917,2]
[388684968,1759318253209,-151.0,0.00021917,2]
[388684969,1759318253219,-151.0,0.00021917,2]
[388684970,1759318253228,-151.0,0.00021917,2]
[388684971,1759318253239,-151.0,0.00021917,2]
[388684972,1759318253249,-151.0,0.00021917,2]
[388684973,1759318253259,-500.0,0.00021917,2]
[388684974,1759318253268,-193.840586,0.00021917,2]
[388684975,1759318253278,-500.0,0.00021917,2]
[388684976,1759318253288,-729.48,0.00021917,2]
[388684977,1759318253298,-738.01,0.00021917,2]
[388684978,1759318253307,-500.0,0.00021917,2]
[388684979,1759318253317,-651.73,0.00021917,2]
[388684980,1759318253326,-2914.92,0.00021917,2]
[388684981,1759318253335,-10131.33,0.00021917,2]
[388684982,1759318253345,-513.16,0.00021917,2]
[388684983,1759318253355,-800.18,0.00021917,2]
[388684984,1759318253364,-500.0,0.00021917,2]
[388684985,1759318253374,-2477.79,0.00021917,2]
[388684986,1759318253383,-2919.8,0.00021917,2]
[388684987,1759318253393,-5252.88,0.00021917,2]
[388684988,1759318253403,-8041.63,0.00021917,2]
[388684989,1759318253413,-2735.54,0.00021917,2]
[388684990,1759318253422,-500.0,0.00021917,2]
[388684991,1759318253432,-500.0,0.00021917,2]
[388684992,1759318253442,-670.24,0.00021917,2]
[388684993,1759318253452,-500.0,0.00021917,2]
[388684994,1759318253462,-500.54378556,0.00021917,2]
[388684995,1759318253471,-3006.98,0.00021917,2]
[388684996,1759318253481,-500.0,0.00021917,2]
[388684997,1759318253490,-5377.22,0.00021917,2]
[388684998,1759318253500,-500.0,0.00021917,2]
[388684999,1759318253510,-594.86,0.00021917,2]
[388685000,1759318253520,-1758.25,0.00021917,2]
[388685001,1759318253530,-151.0,0.00021917,2]
[388685002,1759318253540,-151.0,0.00021917,2]
[388685003,1759318253549,-500.0,0.00021917,2]
[388685004,1759318253559,-151.0,0.00021917,2]
[388685005,1759318253568,-4479.48,0.00021917,2]
[388685006,1759318253580,-151.0,0.00021917,2]
[388685007,1759318253589,-151.0,0.00021917,2]
[388685008,1759318253602,-151.0,0.00021917,2]
[388685009,1759318253615,-800.38,0.00021917,2]
[388685010,1759318253627,-500.0,0.00021917,2]
[388685011,1759318253637,-151.0,0.00021917,2]
[388685012,1759318253646,-151.0,0.00021917,2]
[388685013,1759318253656,-151.0,0.00021917,2]
[388685014,1759318253667,-151.0,0.00021917,2]
[388685015,1759318253676,-230.142141,0.00021917,2]
[388685016,1759318253686,-5822.66,0.00021917,2]
[388685017,1759318253696,-1737.54,0.00021917,2]
[388685018,1759318253705,-626.46,0.00021917,2]
[388685019,1759318253718,-1373.43,0.00021917,2]
[388685020,1759318253728,-1891.02,0.00021917,2]
[388685021,1759318253739,-1149.15,0.00021917,2]
[388685022,1759318253749,-500.0,0.00021917,2]
[388685023,1759318253759,-2830.08,0.00021917,2]
[388685024,1759318253772,-578.09,0.00021917,2]
[388685025,1759318253782,-1021.46,0.00021917,2]
[388685026,1759318253792,-3195.91,0.00021917,2]
[388685027,1759318253802,-602.94,0.00021917,2]
[388685028,1759318253812,-2940.01,0.00021917,2]
[388685029,1759318253823,-878.47,0.00021917,2]
[388685030,1759318253833,-978.89,0.00021917,2]
[388685031,1759318253842,-1017.8,0.00021917,2]
[388685032,1759318253851,-1449.27,0.00021917,2]
[388685033,1759318253862,-2442.07,0.00021917,2]
[388685034,1759318253872,-655.68,0.00021917,2]
[388685035,1759318253882,-9653.8,0.00021917,2]
[388685036,1759318253892,-500.0,0.00021917,2]
[388685037,1759318253902,-3586.09,0.00021917,2]
[388685038,1759318253911,-1735.45,0.00021917,2]
[388685039,1759318253921,-1416.08,0.00021917,2]
[388685040,1759318253932,-1493.15,0.00021917,2]
[388685041,1759318253942,-817.47,0.00021917,2]
[388685042,1759318253952,-2968.37,0.00021917,2]
[388685043,1759318253962,-3374.14,0.00021917,2]
[388685044,1759318253972,-1614.61,0.00021917,2]
[388685045,1759318253983,-500.0,0.00021917,2]
[388685046,1759318253992,-4119.63,0.00021917,2]
[388685047,1759318254002,-611.19,0.00021917,2]
[388685048,1759318254012,-4084.32,0.00021917,2]
[388685049,1759318254021,-1420.61,0.00021917,2]
[388685050,1759318254031,-9986.56,0.00021917,2]
[388685051,1759318254040,-500.0,0.00021917,2]
[388685052,1759318254050,-824.77,0.00021917,2]
[388685053,1759318254060,-3312.0,0.00021917,2]
[388685054,1759318254069,-4540.86,0.00021917,2]
[388685055,1759318254079,-500.0,0.00021917,2]
[388685056,1759318254088,-500.0,0.00021917,2]
[388685057,1759318254098,-500.0,0.00021917,2]
[388685058,1759318254108,-500.0,0.00021917,2]
[388685059,1759318254118,-2501.86,0.00021917,2]
[388685060,1759318254129,-28297.34,0.00021917,2]
[388685061,1759318254139,-2741.16,0.00021917,2]
[388685062,1759318254149,-1063.96,0.00021917,2]
[388685063,1759318254158,-500.0,0.00021917,2]
[388685064,1759318254168,-2858.54,0.00021917,2]
[388685065,1759318254178,-7951.4,0.00021917,2]
[388685066,1759318254189,-1072.17,0.00021917,2]
[388685067,1759318254199,-616.32,0.00021917,2]
[388685068,1759318254209,-1632.22,0.00021917,2]
[388685069,1759318254219,-2269.31,0.00021917,2]
[388685070,1759318254228,-3424.52,0.00021917,2]
[388685071,1759318254237,-2719.21,0.00021917,2]
[388685072,1759318254247,-500.0,0.00021917,2]
[388685073,1759318254256,-786.83,0.00021917,2]
[388685074,1759318254265,-2416.99,0.00021917,2]
[388685075,1759318254275,-500.0,0.00021917,2]
[388685076,1759318254284,-1055.57,0.00021917,2]
[388685077,1759318254294,-3904.64,0.00021917,2]
[388685078,1759318254304,-500.0,0.00021917,2]
[388685079,1759318254313,-1288.8,0.00021917,2]
[388685080,1759318254323,-500.0,0.00021917,2]
[388685081,1759318254332,-2106.81,0.00021917,2]
[388685082,1759318254342,-500.0,0.00021917,2]
[388685083,1759318254352,-500.0,0.00021917,2]
[388685084,1759318254361,-500.0,0.00021917,2]
[388685085,1759318254370,-1100.67,0.00021917,2]
[388685086,1759318254379,-500.0,0.00021917,2]
[388685087,1759318254389,-500.0,0.00021917,2]
[388685088,1759318254398,-500.0,0.00021917,2]
[388685089,1759318254407,-674.98,0.00021917,2]
[388685090,1759318254417,-5571.66,0.00021917,2]
[388685091,1759318254426,-2939.62,0.00021917,2]
[388685092,1759318254436,-500.0,0.00021917,2]
[388685093,1759318254445,-1333.53,0.00021917,2]
[388685094,1759318254454,-1990.12,0.00021917,2]
[388685095,1759318254463,-4094.92,0.00021917,2]
[388685096,1759318254473,-7855.89,0.00021917,2]
[388685097,1759318254483,-1670.7,0.00021917,2]
[388685098,1759318254492,-4769.81,0.00021917,2]
[388685099,1759318254502,-500.0,0.00021917,2]
[388685100,1759318254511,-500.0,0.00021917,2]
[388685101,1759318254520,-1605.49,0.00021917,2]
[388685102,1759318254530,-151.0,0.00021917,2]
[388685103,1759318254540,-151.0,0.00021917,2]
[388685104,1759318254552,-151.0,0.00021917,2]
[388685105,1759318254561,-151.0,0.00021917,2]
[388685106,1759318254571,-500.0,0.00021917,2]
[388685107,1759318254581,-2296.75,0.00021917,2]
[388685108,1759318254591,-151.0,0.00021917,2]
[388685109,1759318254600,-5000.0,0.00021918,2]
[388685110,1759318254610,-177.14925818,0.00021921,2]
[388685111,1759318254620,-150.0,0.00021931,2]
[388685112,1759318254629,-150.0,0.00021944,2]
[388685113,1759318254638,-150.0,0.00021944,2]
[388685114,1759318254648,-833.92870212,0.00021945,2]
[388685115,1759318254658,-590.61,0.00021945,30]
[388685116,1759318254667,-150.0,0.00021965,2]
[388685117,1759318254676,-150.0,0.00021969,2]
[388685118,1759318254686,-1425.0,0.00021972,2]
[388685119,1759318254695,-500.0,0.00021973,2]
[388685120,1759318254705,-500.0,0.00021973,2]
[388685121,1759318254714,-500.0,0.00021973,2]
[388685122,1759318254724,-500.0,0.00021973,2]
[388685123,1759318254734,-500.0,0.00021973,2]
[388685124,1759318254746,-500.0,0.00021973,2]
[388685125,1759318254756,-500.8167018,0.00021973,2]
[388685126,1759318254766,-500.0,0.00021973,2]
[388685127,1759318254777,-500.56835626,0.00021973,2]
[388685128,1759318254786,-500.0,0.00021973,2]
[388685129,1759318254797,-500.0,0.00021973,2]
[388685130,1759318254812,-500.0,0.00021973,2]
[388685131,1759318254821,-500.0,0.00021973,2]
[388685132,1759318254831,-500.0,0.00021973,2]
[388685133,1759318254844,-500.0,0.00021973,2]
[388685134,1759318254854,-500.0,0.00021973,2]
[388685135,1759318254864,-500.0,0.00021973,2]
[388685136,1759318254873,-502.69826759,0.00021973,2]
[388685137,1759318254883,-500.0,0.00021973,2]
[388685138,1759318254896,-282.72023133,0.00021973,2]
[388685139,1759318254905,-500.0,0.00021973,2]
[388685140,1759318254915,-200.0,0.00021973,2]
[388685141,1759318254927,-500.0,0.00021973,2]
[388685142,1759318254937,-500.0,0.00021973,2]
[388685143,1759318254946,-500.0,0.00021973,2]
[388685144,1759318254956,-150.0,0.00021978,2]
[388685145,1759318254966,-240.04663079,0.0002198,2]
[388685146,1759318254976,-314.72780482,0.00021981,2]
[388685147,1759318254986,-1508.03556491,0.00021982,2]
[388685148,1759318254996,-389.40897884,0.00021983,2]
[388685149,1759318255006,-700.25050683,0.00021983,2]
[388685150,1759318255015,-464.09015287,0.00021985,2]
[388685151,1759318255025,-538.77132689,0.00021987,2]
[388685152,1759318255035,-613.45250092,0.00021988,2]
[388685153,1759318255044,-688.13367496,0.0002199,2]
[388685154,1759318255054,-1000.0,0.00021999,2]
[388685155,1759318255063,-8438.66395364,0.00022,2]
[388685156,1759318255073,-25306.62582477,0.00022,7]
[388685157,1759318255082,-20879.89,0.00022,2]
[388685158,1759318255091,-479056.36705806,0.00022,2]
[388685159,1759318255101,-2587.97333252,0.00022,2]
[388685160,1759318255111,-184257.14267883,0.00022,4]
[388685161,1759318255121,-4086.29871191,0.00022,2]
[388685162,1759318255130,-783.09437996,0.00022,7]
[388685163,1759318255140,-7032.50659625,0.00022,15]
[388685164,1759318255150,-160.97,0.00022,2]
[388685165,1759318255161,-3865.88,0.00022,7]
[388685166,1759318255172,-9000.0,0.00022,2]
[388685167,1759318255182,-393.0,0.00022,2]
[388685168,1759318255193,-151.0,0.00022,7]
[388685169,1759318255202,-151.0,0.00022,7]
[388685170,1759318255211,-343.214368,0.00022,7]
[388685171,1759318255222,-343.214368,0.00022,7]
[388685172,1759318255232,-343.214368,0.00022,7]
[388685173,1759318255572,-4000.0,0.00022,4]
[388685174,1759318255588,-557.68132511,0.00022013,2]
[388685175,1759318255599,-326.39,0.00022041,2]
[388685176,1759318255609,-1329.37,0.00022041,2]
[388685177,1759318255620,-833.92870212,0.00022055,2]
[388685178,1759318255629,-174.91311306,0.00022091,2]
[388685179,1759318255639,-3671.25094597,0.00022091,2]
[388685180,1759318255648,-5626.6155583,0.00022091,2]
[388685181,1759318255658,-177.5744482,0.00022091,2]
[388685182,1759318255669,-243.0,0.000221,2]
[388685183,1759318255678,-385.0,0.000221,2]
[388685184,1759318255689,-786.0,0.000221,2]
[388685185,1759318255698,-600.0,0.0002211,2]
[388685186,1759318255709,-833.92870212,0.00022137,2]
[388685187,1759318255719,-500.0,0.00022173,2]
[388685188,1759318255728,-500.32388925,0.00022173,2]
[388685189,1759318255739,-172.6394128,0.00022173,2]
[388685190,1759318255749,-500.0,0.00022173,2]
[388685191,1759318255759,-560.87842462,0.00022173,2]
[388685192,1759318255772,-500.0,0.00022173,2]
[388685193,1759318255782,-500.0,0.00022173,2]
[388685194,1759318255792,-500.0,0.00022173,2]
[388685195,1759318255803,-500.0,0.00022173,2]
[388685196,1759318255813,-500.0,0.00022173,2]
[388685197,1759318255823,-500.0,0.00022173,2]
[388685198,1759318255834,-500.0,0.00022173,2]
[388685199,1759318255846,-500.0,0.00022173,2]
[388685200,1759318255856,-500.0,0.00022173,2]
[388685201,1759318255866,-167.89503211,0.00022173,2]
[388685202,1759318255876,-160.28298351,0.00022173,2]
[388685203,1759318255886,-500.86166811,0.00022173,2]
[388685204,1759318255896,-570.68841107,0.00022173,2]
[388685205,1759318255906,-500.56999013,0.00022173,2]
[388685206,1759318255916,-500.0,0.00022173,2]
[388685207,1759318255926,-500.17143158,0.00022173,2]
[388685208,1759318255936,-500.31631543,0.00022173,2]
[388685209,1759318255945,-571.86697367,0.00022173,2]
[388685210,1759318255955,-500.0,0.00022173,2]
[388685211,1759318255964,-500.0,0.00022173,2]
[388685212,1759318255975,-500.0,0.00022173,2]
[388685213,1759318255985,-547.25014336,0.00022173,2]
[388685214,1759318255995,-500.0,0.00022173,2]
[388685215,1759318256005,-500.0,0.00022173,2]
[388685216,1759318256015,-500.0,0.00022173,2]
[388685217,1759318256025,-500.0,0.00022173,2]
[388685218,1759318256035,-500.0,0.00022173,2]
[388685219,1759318256045,-500.0,0.00022173,2]
[388685220,1759318256055,-203.52851134,0.00022173,2]
[388685221,1759318256065,-164.47201427,0.00022173,2]
[388685222,1759318256074,-324.15272782,0.00022173,2]
[388685223,1759318256084,-500.0,0.00022173,2]
[388685224,1759318256094,-500.0,0.00022173,2]
[388685225,1759318256103,-500.0,0.00022173,2]
[388685226,1759318256114,-515.33330985,0.00022173,2]